bitfinex/quotes_BTCUSD_20241119
["timestamp","ask_amount","ask_price","bid_price","bid_amount"]
[1731979330266,0.083,91130.0,91126.0,0.11906255]
[1731979330477,0.08874038,91130.0,91127.0,0.109736]
[1731979330692,0.08874038,91130.0,91126.0,0.11906255]
[1731979331133,0.083,91130.0,91126.0,0.109737]
[1731979331596,0.11547406,91129.0,91125.0,0.1]
[1731979331803,0.0772,91128.0,91124.0,0.20906255]
[1731979332024,0.0772,91128.0,91126.0,0.003]
[1731979332270,0.05353412,91127.0,91126.0,0.031]
[1731979332488,0.05353412,91127.0,91126.0,0.003]
[1731979332914,0.16327012,91127.0,91126.0,0.003]
[1731979333150,0.16327012,91127.0,91125.0,0.028]
[1731979333151,0.185438,91126.0,91125.0,0.028]
[1731979333611,0.185438,91126.0,91124.0,0.002]
[1731979333612,0.0053715,91126.0,91124.0,0.002]
[1731979333831,0.187239,91125.0,91124.0,0.002]
[1731979334015,0.0775,91123.0,91119.0,0.1]
[1731979334260,0.187246,91119.0,91118.0,0.01714604]
[1731979334493,0.0775,91119.0,91118.0,0.12689304]
[1731979334707,0.08286926,91119.0,91118.0,0.01714604]
[1731979334940,0.08286926,91119.0,91118.0,0.24595559]
[1731979335157,0.003,91127.0,91118.0,0.24595559]
[1731979335158,0.002,91125.0,91124.0,0.02]
[1731979335366,0.002,91125.0,91124.0,0.22880255]
[1731979335605,0.002,91125.0,91120.0,0.219488]
[1731979335606,0.0825,91124.0,91120.0,0.219488]
[1731979335847,0.0825,91124.0,91118.0,0.01714604]
[1731979336114,0.0451,91122.0,91118.0,0.01714604]
[1731979336559,0.0451,91122.0,91118.0,0.12689304]
[1731979336560,0.00570124,91121.0,91118.0,0.12689304]
[1731979336762,0.00570124,91121.0,91119.0,0.109745]
[1731979337592,0.00570124,91121.0,91120.0,0.109745]
[1731979337813,0.01670124,91121.0,91120.0,0.109745]
[1731979338226,0.011,91121.0,91120.0,0.109745]
[1731979338677,0.011,91121.0,91118.0,0.015]
[1731979338908,0.011,91121.0,91114.0,0.219505]
[1731979338909,0.0779,91120.0,91114.0,0.219505]
[1731979339113,0.0779,91120.0,91117.0,0.109748]
[1731979339296,0.00506684,91119.0,91115.0,0.10975]
[1731979339443,0.00506684,91119.0,91116.0,0.109749]
[1731979339652,0.11481384,91119.0,91114.0,0.10906255]
[1731979339869,0.1257,91111.0,91104.0,0.219529]
[1731979340047,0.219514,91110.0,91103.0,0.1]
[1731979340249,0.10976,91108.0,91103.0,0.209765]
[1731979340455,0.114824,91107.0,91103.0,0.1]
[1731979340654,0.005063,91107.0,91103.0,0.209765]
[1731979340953,0.109759,91109.0,91105.0,0.1]
[1731979341162,0.00506297,91106.0,91105.0,0.1]
[1731979341438,0.109759,91109.0,91105.0,0.1]
[1731979341675,0.00506297,91106.0,91105.0,0.22691285]
[1731979341875,0.1257,91111.0,91107.0,0.1]
[1731979342101,0.235456,91111.0,91107.0,0.1]
[1731979342325,0.00506396,91110.0,91107.0,0.20976]
[1731979342594,0.00506396,91110.0,91109.0,0.109758]
[1731979342595,0.00706396,91110.0,91109.0,0.109758]
[1731979342829,0.00706396,91110.0,91109.0,0.32882055]
[1731979343046,0.0459,91122.0,91109.0,0.32882055]
[1731979343047,0.0459,91122.0,91121.0,0.109744]
[1731979343578,0.05095693,91122.0,91121.0,0.109744]
[1731979344215,0.05095693,91122.0,91119.0,0.219491]
[1731979344421,0.05095693,91122.0,91115.0,0.109751]
[1731979344422,0.109745,91120.0,91115.0,0.109751]
[1731979344629,0.05095693,91122.0,91121.0,0.109744]
[1731979344840,0.0459,91122.0,91121.0,0.109744]
[1731979345014,0.0459,91122.0,91117.0,0.219497]
[1731979345280,0.0809,91121.0,91109.0,0.004]
[1731979345501,0.16447368,91130.0,91115.0,0.03614772]
[1731979345502,0.19065,91116.0,91115.0,0.03614772]
[1731979345673,0.23775,91116.0,91115.0,0.03614772]
[1731979345912,0.23775,91116.0,91115.0,0.01714772]
[1731979346555,0.13369128,91116.0,91115.0,0.01714772]
[1731979347413,0.24344128,91116.0,91115.0,0.01714772]
[1731979347618,0.24444128,91116.0,91115.0,0.02014772]
[1731979347822,0.24644128,91116.0,91115.0,0.03914772]
[1731979348034,0.23844128,91116.0,91115.0,0.03914772]
[1731979349301,0.23844128,91116.0,91115.0,0.022]
[1731979353398,0.25892111,91116.0,91115.0,0.022]
[1731979357268,0.25894733,91116.0,91115.0,0.022]
[1731979357700,0.1291,91115.0,91106.0,0.01714993]
[1731979357872,0.189061,91107.0,91106.0,0.01714993]
[1731979358085,0.20956705,91107.0,91106.0,0.01714993]
[1731979358294,0.26242758,91107.0,91106.0,0.01714993]
[1731979359202,0.15366658,91107.0,91106.0,0.006]
[1731979359407,0.26342758,91107.0,91106.0,0.006]
[1731979360417,0.24292153,91107.0,91106.0,0.006]
[1731979360589,0.24892153,91107.0,91106.0,0.006]
[1731979361560,0.26944668,91107.0,91106.0,0.006]
[1731979361927,0.26944668,91107.0,91106.0,0.007707]
[1731979363041,0.26144668,91107.0,91106.0,0.007707]
[1731979364121,0.24092153,91107.0,91106.0,0.007707]
[1731979366382,0.13116053,91107.0,91106.0,0.007707]
[1731979366625,0.24092153,91107.0,91106.0,0.007707]
[1731979369272,0.26145363,91107.0,91106.0,0.007707]
[1731979371996,0.38681928,91107.0,91106.0,0.007707]
[1731979372200,0.36628718,91107.0,91106.0,0.007707]
[1731979374610,0.36714078,91107.0,91106.0,0.007707]
[1731979376235,0.47620333,91107.0,91106.0,0.007707]
[1731979376410,0.48620333,91107.0,91106.0,0.007707]
[1731979376616,0.48620333,91107.0,91099.0,0.0017074]
[1731979376617,0.119769,91100.0,91099.0,0.0017074]
[1731979376820,0.4776972,91100.0,91099.0,0.0017074]
[1731979377033,0.48409726,91100.0,91099.0,0.0017074]
[1731979377234,0.49409726,91100.0,91099.0,0.0017074]
[1731979377917,0.49509726,91100.0,91099.0,0.0117074]
[1731979378129,0.49409726,91100.0,91099.0,0.0017074]
[1731979378845,0.49409726,91100.0,91099.0,0.0027074]
[1731979379047,0.50009726,91100.0,91099.0,0.0027074]
[1731979379262,0.50009726,91100.0,91099.0,0.0017074]
[1731979379263,0.49409726,91100.0,91099.0,0.0017074]
[1731979379495,0.52109726,91100.0,91099.0,0.0037074]
[1731979379901,0.54809726,91100.0,91099.0,0.0037074]
[1731979380502,0.52109726,91100.0,91099.0,0.0037074]
[1731979380726,0.54809726,91100.0,91099.0,0.0037074]
[1731979380902,0.54809726,91100.0,91099.0,0.0017074]
[1731979380903,0.53596845,91100.0,91099.0,0.0017074]
[1731979381130,0.56296845,91100.0,91099.0,0.0027074]
[1731979381539,0.53596845,91100.0,91099.0,0.0017074]
[1731979381754,0.56296845,91100.0,91099.0,0.0027074]
[1731979385205,0.23966906,91100.0,91099.0,0.0017074]
[1731979385416,0.23966906,91100.0,91099.0,0.0027074]
[1731979385629,0.27266906,91100.0,91099.0,0.0027074]
[1731979386062,0.24766906,91100.0,91099.0,0.0027074]
[1731979386271,0.26166906,91100.0,91099.0,0.0037074]
[1731979386481,0.38703471,91100.0,91099.0,0.0037074]
[1731979388697,0.49609726,91100.0,91099.0,0.0037074]
[1731979389326,0.50609726,91100.0,91099.0,0.0037074]
[1731979394006,0.64146291,91100.0,91099.0,0.0037074]
[1731979394214,0.67733678,91100.0,91099.0,0.0037074]
[1731979395167,0.66333678,91100.0,91099.0,0.0027074]
[1731979395374,0.68233678,91100.0,91099.0,0.0017074]
[1731979395791,0.70933678,91100.0,91099.0,0.0027074]
[1731979396018,0.68233678,91100.0,91099.0,0.0027074]
[1731979396429,0.71133678,91100.0,91099.0,0.0027074]
[1731979396636,0.70933678,91100.0,91099.0,0.0027074]
[1731979397045,0.68233678,91100.0,91099.0,0.0017074]
[1731979397464,0.54809726,91100.0,91099.0,0.0027074]
[1731979402663,0.52809726,91100.0,91099.0,0.0027074]
[1731979402871,0.40459726,91100.0,91099.0,0.0027074]
[1731979403083,0.41459726,91100.0,91099.0,0.0027074]
[1731979403302,0.55019726,91100.0,91099.0,0.0027074]
[1731979403530,0.67556291,91100.0,91099.0,0.0027074]
[1731979403971,0.55019726,91100.0,91099.0,0.0027074]
[1731979405383,0.54019726,91100.0,91099.0,0.0027074]
[1731979405614,0.40459726,91100.0,91099.0,0.0027074]
[1731979406430,0.41459726,91100.0,91099.0,0.0027074]
[1731979406632,0.40459726,91100.0,91099.0,0.0027074]
[1731979406838,0.41459726,91100.0,91099.0,0.0027074]
[1731979408335,0.27923161,91100.0,91099.0,0.0027074]
[1731979408560,0.40459726,91100.0,91099.0,0.0027074]
[1731979409398,0.41459726,91100.0,91099.0,0.0027074]
[1731979410853,0.40459726,91100.0,91099.0,0.0027074]
[1731979411062,0.41459726,91100.0,91099.0,0.0027074]
[1731979412471,0.42459726,91100.0,91099.0,0.0027074]
[1731979412709,0.68016291,91100.0,91099.0,0.0027074]
[1731979412913,0.71443572,91100.0,91099.0,0.0027074]
[1731979413274,0.58907007,91100.0,91099.0,0.0027074]
[1731979413657,0.71443572,91100.0,91099.0,0.0027074]
[1731979413903,0.58907007,91100.0,91099.0,0.0027074]
[1731979414294,0.71443572,91100.0,91099.0,0.0027074]
[1731979414559,0.109788,91084.0,91083.0,0.01715494]
[1731979414677,0.23515365,91084.0,91083.0,0.01715494]
[1731979414896,0.24255733,91084.0,91083.0,0.01715494]
[1731979415959,0.39661988,91084.0,91083.0,0.01815494]
[1731979418824,0.59687521,91084.0,91083.0,0.01715494]
[1731979419052,0.63927867,91084.0,91083.0,0.01715494]
[1731979419261,0.63927867,91084.0,91063.0,0.16447368]
[1731979419262,0.109812,91064.0,91063.0,0.16447368]
[1731979419623,0.11720055,91064.0,91063.0,0.16447368]
[1731979419973,0.00738855,91064.0,91059.0,0.0017066]
[1731979420190,0.219629,91063.0,91059.0,0.0017066]
[1731979420366,0.109817,91060.0,91059.0,0.0017066]
[1731979420708,0.00738663,91060.0,91059.0,0.0017066]
[1731979420914,0.00738663,91060.0,91059.0,0.1115246]
[1731979421123,0.002,91064.0,91060.0,0.109817]
[1731979421339,0.16447368,91067.0,91059.0,0.0017066]
[1731979421340,0.112814,91063.0,91059.0,0.0017066]
[1731979421567,0.003,91060.0,91059.0,0.0017066]
[1731979421773,0.01038663,91060.0,91059.0,0.0017066]
[1731979421988,0.00738663,91060.0,91059.0,0.0017066]
[1731979422191,0.112817,91060.0,91059.0,0.0017066]
[1731979422494,0.12020468,91060.0,91059.0,0.0017066]
[1731979422927,0.12320468,91060.0,91059.0,0.0017066]
[1731979423152,0.11520468,91060.0,91059.0,0.0017066]
[1731979426535,0.11520468,91060.0,91059.0,0.0017066]
[1731979427516,0.11278731,91060.0,91059.0,0.0017066]
[1731979441838,0.11278731,91060.0,91059.0,0.1115246]
[1731979441839,0.01182501,91060.0,91059.0,0.1115246]
[1731979442058,0.01182501,91060.0,91059.0,0.1866246]
[1731979442252,0.0068547,91060.0,91059.0,0.1866246]
[1731979442452,0.0068547,91060.0,91059.0,0.0768066]
[1731979442693,0.01182107,91060.0,91059.0,0.0768066]
[1731979443377,0.01182107,91060.0,91059.0,0.1866246]
[1731979443594,0.0068547,91060.0,91059.0,0.1866246]
[1731979443803,0.01182504,91060.0,91059.0,0.1866246]
[1731979444251,0.12164204,91060.0,91059.0,0.0768066]
[1731979444521,0.0068547,91060.0,91059.0,0.0017066]
[1731979444732,0.01182552,91060.0,91059.0,0.0017066]
[1731979444937,0.0068547,91060.0,91059.0,0.0017066]
[1731979445167,0.01182552,91060.0,91059.0,0.1115246]
[1731979447288,0.0068547,91060.0,91059.0,0.1115246]
[1731979449050,0.0068547,91060.0,91059.0,0.0017066]
[1731979449051,0.1166717,91060.0,91059.0,0.0017066]
[1731979449276,0.12164895,91060.0,91059.0,0.0017066]
[1731979452721,0.13690497,91060.0,91059.0,0.0017066]
[1731979456077,0.24596752,91060.0,91059.0,0.0017066]
[1731979456339,0.32886752,91060.0,91059.0,0.0017066]
[1731979456465,0.37636752,91060.0,91059.0,0.0017066]
[1731979457924,0.37585469,91060.0,91059.0,0.0017066]
[1731979458196,0.37285469,91060.0,91059.0,0.0017066]
[1731979458346,0.43685469,91060.0,91059.0,0.0017066]
[1731979458760,0.40985469,91060.0,91059.0,0.0017066]
[1731979459139,0.44885469,91060.0,91059.0,0.0017066]
[1731979459433,0.52044457,91060.0,91059.0,0.0017066]
[1731979459578,0.42185469,91060.0,91059.0,0.0017066]
[1731979459984,0.44885469,91060.0,91059.0,0.0017066]
[1731979460191,0.44685469,91060.0,91059.0,0.0017066]
[1731979460536,0.54544457,91060.0,91059.0,0.0017066]
[1731979461600,0.54552668,91060.0,91059.0,0.0017066]
[1731979462452,0.54752668,91060.0,91059.0,0.0017066]
[1731979463682,0.250828,91051.0,91050.0,0.0017068]
[1731979463973,0.61062185,91051.0,91050.0,0.0017068]
[1731979464181,0.61805914,91051.0,91050.0,0.0017068]
[1731979464404,0.64229074,91051.0,91050.0,0.0017068]
[1731979464638,0.64229074,91051.0,91032.0,0.0017066]
[1731979464639,0.10985,91033.0,91032.0,0.0017066]
[1731979464867,0.38246311,91033.0,91032.0,0.0017066]
[1731979465079,0.38988374,91033.0,91032.0,0.0017066]
[1731979465295,0.4720343,91033.0,91032.0,0.0017066]
[1731979465931,0.38988374,91033.0,91032.0,0.0017066]
[1731979466138,0.4990343,91033.0,91032.0,0.0017066]
[1731979466350,0.48693518,91033.0,91032.0,0.0017066]
[1731979466556,0.3118786,91033.0,91032.0,0.0017066]
[1731979466760,0.29647263,91033.0,91032.0,0.0017066]
[1731979468066,0.05342063,91033.0,91032.0,0.1115576]
[1731979468266,0.05955643,91033.0,91032.0,0.1115576]
[1731979468475,0.05342063,91033.0,91032.0,0.1115576]
[1731979468907,0.027,91033.0,91032.0,0.1115576]
[1731979469130,0.109841,91041.0,91033.0,0.219698]
[1731979469331,0.219677,91043.0,91035.0,0.109847]
[1731979469753,0.10984,91041.0,91036.0,0.109846]
[1731979471118,0.219677,91043.0,91036.0,0.109846]
[1731979471395,0.10984,91042.0,91036.0,0.109846]
[1731979471619,0.16447368,91046.0,91038.0,0.109844]
[1731979471837,0.006,91043.0,91034.0,0.219698]
[1731979472055,0.109839,91042.0,91037.0,0.109845]
[1731979472284,0.16447368,91046.0,91032.0,0.0017066]
[1731979472285,0.005,91041.0,91036.0,0.109846]
[1731979472500,0.114841,91041.0,91036.0,0.109846]
[1731979472950,0.125202,91040.0,91032.0,0.0017066]
[1731979473180,0.125202,91040.0,91033.0,0.109849]
[1731979473404,0.125202,91040.0,91034.0,0.109849]
[1731979473632,0.109843,91039.0,91034.0,0.109849]
[1731979474751,0.125202,91040.0,91039.0,0.109843]
[1731979474983,0.109839,91043.0,91038.0,0.109844]
[1731979475242,0.004,91039.0,91037.0,0.109845]
[1731979475462,0.004,91039.0,91035.0,0.109847]
[1731979475669,0.00613186,91038.0,91034.0,0.001]
[1731979475804,0.004,91039.0,91036.0,0.109845]
[1731979476031,0.00613186,91038.0,91036.0,0.109845]
[1731979476455,0.109839,91042.0,91036.0,0.1115544]
[1731979476703,0.00613186,91041.0,91036.0,0.1115544]
[1731979476912,0.002,91038.0,91036.0,0.1115544]
[1731979477349,0.00613186,91037.0,91036.0,0.1115544]
[1731979477651,0.00613186,91037.0,91036.0,0.0017094]
[1731979477866,0.11597686,91037.0,91036.0,0.0017094]
[1731979478681,0.00613186,91037.0,91036.0,0.0017094]
[1731979478873,0.00813186,91037.0,91036.0,0.0017094]
[1731979479167,0.00814799,91037.0,91036.0,0.0017094]
[1731979479357,0.00614799,91037.0,91036.0,0.0017094]
[1731979479490,0.002,91037.0,91036.0,0.0017094]
[1731979479690,0.01214799,91037.0,91036.0,0.0017094]
[1731979480102,0.00614799,91037.0,91036.0,0.0017094]
[1731979480569,0.30540755,91037.0,91036.0,0.0017094]
[1731979480766,0.31155554,91037.0,91036.0,0.0017094]
[1731979481215,0.31355554,91037.0,91036.0,0.0017094]
[1731979481430,0.31155554,91037.0,91036.0,0.0017094]
[1731979481850,0.33855554,91037.0,91036.0,0.0017094]
[1731979482279,0.30655554,91037.0,91036.0,0.0017094]
[1731979482527,0.33355554,91037.0,91036.0,0.0017094]
[1731979482824,0.31255554,91037.0,91036.0,0.0017094]
[1731979483048,0.33155554,91037.0,91036.0,0.0017094]
[1731979483248,0.32555554,91037.0,91036.0,0.0017094]
[1731979483455,0.35255554,91037.0,91036.0,0.0017094]
[1731979484087,0.35255554,91037.0,91036.0,0.1115554]
[1731979484088,0.06014799,91037.0,91036.0,0.1115554]
[1731979484293,0.03314799,91037.0,91036.0,0.1115554]
[1731979484505,0.06014799,91037.0,91036.0,0.1115554]
[1731979484921,0.10984,91042.0,91036.0,0.1115554]
[1731979485148,0.14299299,91037.0,91036.0,0.0017094]
[1731979485353,0.163845,91037.0,91036.0,0.0017094]
[1731979485568,0.06016452,91037.0,91036.0,0.0017094]
[1731979485775,0.03316452,91037.0,91036.0,0.1115554]
[1731979486102,0.06016452,91037.0,91036.0,0.1115554]
[1731979486309,0.027,91037.0,91036.0,0.1115554]
[1731979486505,0.03316244,91037.0,91036.0,0.1115554]
[1731979487350,0.03316244,91037.0,91036.0,0.0017094]
[1731979487899,0.03316244,91037.0,91036.0,0.1115554]
[1731979488251,0.054,91037.0,91036.0,0.1115554]
[1731979489468,0.06016847,91037.0,91036.0,0.1115554]
[1731979490343,0.054,91037.0,91036.0,0.1115554]
[1731979497988,0.046,91037.0,91036.0,0.1115554]
[1731979499637,0.046,91037.0,91036.0,0.1928554]
[1731979499855,0.046,91037.0,91036.0,0.2158554]
[1731979499856,0.0468549,91037.0,91036.0,0.2158554]
[1731979500945,0.0468549,91037.0,91036.0,0.32491795]
[1731979501180,0.0198549,91037.0,91036.0,0.33491795]
[1731979501405,0.0028549,91037.0,91036.0,0.59204721]
[1731979501872,0.0038549,91037.0,91036.0,0.64409029]
[1731979502096,0.0038549,91037.0,91036.0,0.64421135]
[1731979502522,0.0038549,91037.0,91036.0,0.44791795]
[1731979502933,0.0038549,91037.0,91036.0,0.49361795]
[1731979503362,0.0038549,91037.0,91036.0,0.6898427]
[1731979504285,0.0038549,91037.0,91036.0,0.49361795]
[1731979504916,0.0038549,91037.0,91036.0,0.50888306]
[1731979505391,0.0038549,91037.0,91036.0,0.2145554]
[1731979505643,0.0038549,91037.0,91036.0,0.1145554]
[1731979507412,0.0038549,91037.0,91036.0,0.0047094]
[1731979507614,0.0038549,91037.0,91036.0,0.1145554]
[1731979507840,0.00909292,91037.0,91036.0,0.0047094]
[1731979508069,0.0038549,91037.0,91036.0,0.1145554]
[1731979508269,0.00909292,91037.0,91036.0,0.1145554]
[1731979508494,0.0038549,91037.0,91036.0,0.1145554]
[1731979508735,0.00909292,91037.0,91036.0,0.1145554]
[1731979508945,0.0038549,91037.0,91036.0,0.1145554]
[1731979509152,0.00909292,91037.0,91036.0,0.1145554]
[1731979509413,0.0038549,91037.0,91036.0,0.1145554]
[1731979511441,0.1136999,91037.0,91036.0,0.0047094]
[1731979511882,0.11893792,91037.0,91036.0,0.0047094]
[1731979512087,0.20083792,91037.0,91036.0,0.0047094]
[1731979512288,0.20083792,91037.0,91036.0,0.0017094]
[1731979512289,0.19983792,91037.0,91036.0,0.0017094]
[1731979512516,0.19983792,91037.0,91036.0,0.0027094]
[1731979512517,0.20083792,91037.0,91036.0,0.0027094]
[1731979512711,0.08899292,91037.0,91036.0,0.0027094]
[1731979512925,0.08099292,91037.0,91036.0,0.0027094]
[1731979513133,0.00580152,91037.0,91036.0,0.1125554]
[1731979513354,0.001,91037.0,91036.0,0.1125554]
[1731979514194,0.003,91037.0,91036.0,0.1125554]
[1731979514433,0.000855,91042.0,91041.0,0.10984]
[1731979515059,0.00565892,91042.0,91041.0,0.10984]
[1731979517638,0.01265892,91042.0,91041.0,0.11084]
[1731979518074,0.007855,91042.0,91041.0,0.11084]
[1731979518675,0.007855,91042.0,91041.0,0.30717154]
[1731979519359,0.007855,91042.0,91041.0,0.11084]
[1731979520513,0.007855,91042.0,91041.0,0.13442575]
[1731979520770,0.007855,91042.0,91041.0,0.13384]
[1731979521237,0.007855,91042.0,91041.0,0.28095745]
[1731979521887,0.007855,91042.0,91041.0,0.38095745]
[1731979523244,0.007855,91042.0,91041.0,0.23384]
[1731979523461,0.007855,91042.0,91041.0,0.21084]
[1731979527200,0.007855,91042.0,91041.0,0.24384]
[1731979527433,0.007855,91042.0,91041.0,0.32014]
[1731979528094,0.16432868,91056.0,91055.0,0.109823]
[1731979528563,0.16912919,91056.0,91055.0,0.109823]
[1731979528815,0.0492547,91060.0,91059.0,0.109818]
[1731979530182,0.0502547,91060.0,91059.0,0.109818]
[1731979530871,0.0018547,91060.0,91059.0,0.109818]
[1731979531782,0.0018547,91060.0,91059.0,0.110818]
[1731979531783,0.0068547,91060.0,91059.0,0.110818]
[1731979541129,0.0068547,91060.0,91059.0,0.001]
[1731979541386,0.0860547,91060.0,91059.0,0.110818]
[1731979541848,0.09173978,91060.0,91059.0,0.110818]
[1731979542966,0.08373978,91060.0,91059.0,0.110818]
[1731979543424,0.35131933,91060.0,91059.0,0.001]
[1731979544519,0.35131933,91060.0,91046.0,0.27430768]
[1731979544520,0.109832,91049.0,91046.0,0.16447368]
[1731979544746,0.219637,91059.0,91041.0,0.16447368]
[1731979544747,0.109835,91045.0,91041.0,0.16447368]
[1731979545018,0.109839,91043.0,91033.0,0.00171]
[1731979545231,0.00569805,91044.0,91039.0,0.109842]
[1731979545449,0.219666,91047.0,91039.0,0.109842]
[1731979545663,0.00569772,91043.0,91040.0,0.109841]
[1731979545878,0.109836,91045.0,91040.0,0.109841]
[1731979546096,0.00569738,91042.0,91040.0,0.109841]
[1731979546317,0.0821,91044.0,91040.0,0.109841]
[1731979546535,0.00569704,91041.0,91040.0,0.109841]
[1731979546754,0.0821,91044.0,91040.0,0.109841]
[1731979546973,0.00569704,91041.0,91040.0,0.109841]
[1731979547183,0.0821,91044.0,91040.0,0.109841]
[1731979547900,0.00768255,91043.0,91040.0,0.003]
[1731979548362,0.00568255,91043.0,91040.0,0.109841]
[1731979548589,0.00568255,91043.0,91040.0,0.112841]
[1731979548813,0.00568255,91043.0,91040.0,0.006]
[1731979549249,0.00768255,91043.0,91040.0,0.003]
[1731979549460,0.00868255,91043.0,91040.0,0.011]
[1731979549880,0.00868255,91043.0,91040.0,0.120841]
[1731979550741,0.00868255,91043.0,91040.0,0.011]
[1731979551432,0.00868255,91043.0,91042.0,0.109839]
[1731979551651,0.003,91043.0,91042.0,0.109839]
[1731979552105,0.003,91043.0,91042.0,0.34190155]
[1731979552321,0.002,91043.0,91042.0,0.34190155]
[1731979552767,0.003,91043.0,91042.0,0.34590155]
[1731979552997,0.001,91043.0,91042.0,0.34590155]
[1731979553665,0.001,91043.0,91042.0,0.44409189]
[1731979553876,0.001,91043.0,91042.0,0.34590155]
[1731979554508,0.003,91043.0,91042.0,0.34890155]
[1731979555165,0.003,91043.0,91042.0,0.216839]
[1731979558132,0.15947368,91055.0,91054.0,0.109824]
[1731979558347,0.15947368,91055.0,91042.0,0.007]
[1731979558557,0.1651417,91055.0,91052.0,0.109826]
[1731979558770,0.15947368,91055.0,91052.0,0.109826]
[1731979558986,0.00566769,91054.0,91052.0,0.109826]
[1731979559207,0.109822,91057.0,91052.0,0.109826]
[1731979559439,0.0056774,91053.0,91050.0,0.219659]
[1731979559660,0.014,91055.0,91051.0,0.109828]
[1731979559886,0.014,91055.0,91053.0,0.109826]
[1731979560395,0.014,91055.0,91054.0,0.109824]
[1731979560850,0.041,91055.0,91054.0,0.111824]
[1731979561065,0.027,91055.0,91054.0,0.111824]
[1731979561298,0.0008542,91060.0,91059.0,0.109818]
[1731979561778,0.0008542,91060.0,91059.0,0.209818]
[1731979562467,0.0008542,91060.0,91059.0,0.210818]
[1731979562724,0.0278542,91060.0,91059.0,0.210818]
[1731979562931,0.0008542,91060.0,91059.0,0.209818]
[1731979563852,0.0794,91059.0,91054.0,0.102]
[1731979564073,0.0794,91059.0,91044.0,0.1]
[1731979564281,0.0794,91059.0,91039.0,0.26258143]
[1731979564282,0.12513689,91056.0,91039.0,0.16447368]
[1731979564497,0.12513689,91056.0,91041.0,0.109839]
[1731979564498,0.109834,91047.0,91041.0,0.109839]
[1731979564726,0.349347,91055.0,91041.0,0.109839]
[1731979564950,0.349347,91055.0,91037.0,0.0017098]
[1731979564951,0.219654,91052.0,91037.0,0.0017098]
[1731979565158,0.10906255,91051.0,91044.0,0.002]
[1731979565423,0.219659,91050.0,91044.0,0.002]
[1731979565633,0.109835,91045.0,91044.0,0.001]
[1731979565852,0.109835,91045.0,91041.0,0.008]
[1731979566064,0.109835,91045.0,91041.0,0.01]
[1731979567427,0.109835,91045.0,91041.0,0.002]
[1731979567872,0.10906255,91051.0,91050.0,0.109829]
[1731979567873,0.01,91051.0,91050.0,0.109829]
[1731979568092,0.1297,91055.0,91040.0,0.0017082]
[1731979568328,0.001,91045.0,91044.0,0.005]
[1731979568541,0.0008542,91060.0,91044.0,0.114837]
[1731979568758,0.16447368,91053.0,91049.0,0.109829]
[1731979568992,0.001,91045.0,91041.0,0.016]
[1731979569235,0.0802,91044.0,91041.0,0.009]
[1731979569450,0.08585894,91044.0,91040.0,0.0017082]
[1731979569672,0.10984,91041.0,91040.0,0.0017082]
[1731979570093,0.1154984,91041.0,91040.0,0.0017082]
[1731979570600,0.0056584,91041.0,91040.0,0.0017082]
[1731979570819,0.10984,91041.0,91040.0,0.0017082]
[1731979571034,0.1154984,91041.0,91040.0,0.0017082]
[1731979571251,0.1174984,91041.0,91040.0,0.0087082]
[1731979572582,0.0076584,91041.0,91040.0,0.1185492]
[1731979572805,0.0086584,91041.0,91040.0,0.13541557]
[1731979573021,0.0006584,91041.0,91040.0,0.13541557]
[1731979573423,0.0006584,91041.0,91040.0,0.1464009]
[1731979575018,0.0006584,91041.0,91040.0,0.0365599]
[1731979575234,0.0006584,91041.0,91040.0,0.1464009]
[1731979575668,0.0006584,91041.0,91040.0,0.13541557]
[1731979576825,0.0006584,91041.0,91040.0,0.14640152]
[1731979577059,0.0006584,91041.0,91040.0,0.24820152]
[1731979577282,0.0006584,91041.0,91040.0,0.16940152]
[1731979578463,0.0006584,91041.0,91040.0,0.15841557]
[1731979578674,0.0006584,91041.0,91040.0,0.25841557]
[1731979579510,0.0006584,91041.0,91040.0,0.26940023]
[1731979580391,0.0006584,91041.0,91040.0,0.44606278]
[1731979580645,0.0008542,91060.0,91059.0,0.109818]
[1731979580853,0.0008542,91060.0,91059.0,0.11668437]
[1731979581741,0.0008542,91060.0,91059.0,0.12766732]
[1731979581956,0.0278542,91060.0,91059.0,0.12966732]
[1731979582414,0.0548542,91060.0,91059.0,0.13066732]
[1731979582639,0.0008542,91060.0,91059.0,0.12766732]
[1731979582861,0.0178542,91060.0,91059.0,0.13066732]
[1731979583071,0.0428542,91060.0,91059.0,0.13066732]
[1731979583286,0.0428542,91060.0,91059.0,0.11968437]
[1731979583512,0.0428542,91060.0,91059.0,0.13066732]
[1731979584182,0.0008542,91060.0,91059.0,0.12766732]
[1731979584605,0.0078542,91060.0,91059.0,0.12766732]
[1731979587978,0.0829542,91071.0,91059.0,0.01784932]
[1731979588183,0.0829542,91071.0,91070.0,0.109805]
[1731979588394,0.0829542,91071.0,91070.0,0.11667137]
[1731979589277,0.1309542,91071.0,91070.0,0.11667137]
[1731979589503,0.1039542,91071.0,91070.0,0.11667137]
[1731979589731,0.1309542,91071.0,91070.0,0.11867137]
[1731979590610,0.1099542,91071.0,91070.0,0.11867137]
[1731979590864,0.1289542,91071.0,91070.0,0.12067137]
[1731979593376,0.1289542,91071.0,91070.0,0.01086637]
[1731979593596,0.1289542,91071.0,91070.0,0.12067137]
[1731979594262,0.1298085,91071.0,91070.0,0.12067137]
[1731979595199,0.1298085,91071.0,91070.0,0.01086637]
[1731979595442,0.1298085,91071.0,91070.0,0.12067137]
[1731979596117,0.1298085,91071.0,91070.0,0.01086637]
[1731979596607,0.1298085,91071.0,91070.0,0.12067137]
[1731979596834,0.1298085,91071.0,91070.0,0.12753545]
[1731979597066,0.1298085,91071.0,91070.0,0.12066908]
[1731979598669,0.0468543,91071.0,91070.0,0.12066908]
[1731979603109,0.0388543,91071.0,91070.0,0.12066908]
[1731979603341,0.0388543,91071.0,91070.0,0.13165103]
[1731979603549,0.1486583,91071.0,91070.0,0.01086408]
[1731979603786,0.1486583,91071.0,91070.0,0.01086405]
[1731979606624,0.28158477,91071.0,91070.0,0.005708]
[1731979607276,0.29663513,91071.0,91070.0,0.005708]
[1731979609287,0.41569768,91071.0,91070.0,0.005708]
[1731979610605,0.29663513,91071.0,91070.0,0.005708]
[1731979611661,0.41569768,91071.0,91070.0,0.005708]
[1731979612077,0.41769768,91071.0,91070.0,0.005708]
[1731979612296,0.41569768,91071.0,91070.0,0.005708]
[1731979616658,0.41769768,91071.0,91070.0,0.005708]
[1731979618468,0.49979603,91071.0,91070.0,0.005708]